[Event "55th Rubinstein Memorial-C 2019"]
[Site "Polanica-Zdroj"]
[Date "2019.08.17"]
[Round "1.1"]
[White "Majek, Kacper"]
[Black "Panczuk, Grzegorz"]
[Result "1-0"]
[ECO "A04"]
[WhiteElo "1984"]
[BlackElo "1494"]
[Annotator "NA"]
[PlyCount "103"]
[EventDate "2019.08.17"]
[EventType "swiss"]
[EventCountry "POL"]
[SourceTitle "playchess.com"]
[Source "ChessBase"]
[SourceQuality "1"]
[TimeControl "40/5400+30:1800+30"]

1. Nf3 {[%emt 0:00:00]} e6 {[%emt 0:00:53]} 2. d4 {[%emt 0:00:51]} d5 {[%emt 0:01:01]} 3. c4 {[%emt 0:00:15]} Nf6 {[%emt 0:03:18]} 4. g3 {[%emt 0:00:06]} g6 {[%emt 0:03:21]} 5. Bg2 {[%emt 0:00:12]} Bg7 {[%emt 0:00:28]} 6. O-O {[%emt 0:00:11]} O-O {[%emt 0:01:27]} 7. Nc3 {[%emt 0:01:09]} c6 {[%emt 0:01:47]} 8. Qd3 {[%emt 0:06:41]} Na6 {[%emt 0:05:14]} 9. Ne5 {[%emt 0:03:08]} Nd7 {[%emt 0:01:58]} 10. Nxd7 {[%emt 0:00:52]} Qxd7 {[%emt 0:01:48]} 11. e3 {[%emt 0:03:16]} Nc7 {[%emt 0:03:59]} 12. Rd1 {[%emt 0:03:39]} b5 {[%emt 0:02:37]} 13. cxb5 {[%emt 0:03:43]} cxb5 {[%emt 0:01:16]} 14. b4 {[%emt 0:03:19]} Bb7 {[%emt 0:02:52]} 15. Bb2 {[%emt 0:03:46]} a6 {[%emt 0:05:49]} 16. Ne2 {[%emt 0:00:43]} Ne8 {[%emt 0:04:17]} 17. Nc1 {[%emt 0:00:36]} Nd6 {[%emt 0:00:37]} 18. Nb3 {[%emt 0:00:08]} Nc4 {[%emt 0:00:05]} 19. Nc5 {[%emt 0:01:08]} Qc7 {[%emt 0:03:25]} 20. Bc3 {[%emt 0:00:18]} Bc6 {[%emt 0:05:29]} 21. Qe2 {[%emt 0:03:01]} Rfb8 {[%emt 0:04:37]} 22. Rac1 {[%emt 0:03:06]} a5 {[%emt 0:06:06]} 23. Nd3 {[%emt 0:07:25]} Bf8 {[%emt 0:11:04]} 24. h4 {[%emt 0:01:41]} axb4 {[%emt 0:06:10]} 25. Bxb4 {[%emt 0:00:17]} Bxb4 {[%emt 0:01:00]} 26. Nxb4 {[%emt 0:00:02]} Ra4 {[%emt 0:00:29]} 27. Rb1 {[%emt 0:09:02]} Qd6 {[%emt 0:03:17]} 28. Qe1 {[%emt 0:01:27]} Bd7 {[%emt 0:03:05]} 29. Rb3 {[%emt 0:01:59]} Rc8 {[%emt 0:01:46]} 30. Rc1 {[%emt 0:00:53]} Rca8 {[%emt 0:01:12]} 31. Bf1 {[%emt 0:01:32]} Ra3 {[%emt 0:02:00]} 32. Qc3 {[%emt 0:01:41]} R3a7 {[%emt 0:06:19]} 33. Qe1 {[%emt 0:05:06]} Ra3 {[%emt 0:00:49]} 34. Bd3 {[%emt 0:15:18]} R8a4 {[%emt 0:01:12]} 35. Rxa3 {[%emt 0:00:07]} Nxa3 {[%emt 0:00:42]} 36. Rc5 {[%emt 0:00:35]} Nc4 {[%emt 0:00:27]} 37. Bc2 {[%emt 0:02:04]} Ra8 {[%emt 0:01:09]} 38. e4 {[%emt 0:05:23]} Rc8 {[%emt 0:01:34]} 39. e5 {[%emt 0:00:09]} Qb6 {[%emt 0:00:36]} 40. Nd3 {[%emt 0:00:17]} Ra8 {[%emt 0:00:51]} 41. Bb3 {[%emt 0:30:12]} Na5 {[%emt 0:30:20]} 42. Qe3 {[%emt 0:00:45]} Nxb3 {[%emt 0:00:45]} 43. axb3 {[%emt 0:00:02]} b4 {[%emt 0:01:00]} 44. Kh2 {[%emt 0:05:39]} Ra3 {[%emt 0:01:18]} 45. Nf4 {[%emt 0:00:34]} Qb7 {[%emt 0:00:51]} 46. Nh3 {[%emt 0:00:38]} Qa6 {[%emt 0:01:06]} 47. Rc7 {[%emt 0:03:07]} Be8 {[%emt 0:00:44]} 48. Qh6 {[%emt 0:00:52]} Ra1 {[%emt 0:00:29]} 49. Re7 {[%emt 0:01:08]} Bc6 {[%emt 0:00:37]} 50. Qf4 {[%emt 0:00:15]} Rh1+ {[%emt 0:01:06]} 51. Kxh1 {[%emt 0:00:06]} Qf1+ {[%emt 0:00:04]} 52. Kh2 {[%emt 0:00:24]} 1-0

[Event "55th Rubinstein Memorial-C 2019"]
[Site "Polanica-Zdroj"]
[Date "2019.08.17"]
[Round "1.2"]
[White "Zimny, Jakub"]
[Black "Grossmann, Ryszard"]
[Result "0-1"]
[ECO "B13"]
[WhiteElo "1492"]
[BlackElo "1975"]
[Annotator "NA"]
[PlyCount "46"]
[EventDate "2019.08.17"]
[EventType "swiss"]
[EventCountry "POL"]
[SourceTitle "playchess.com"]
[Source "ChessBase"]
[SourceQuality "1"]
[TimeControl "40/5400+30:1800+30"]

1. e4 {[%emt 0:00:00]} c6 {[%emt 0:00:00]} 2. d4 {[%emt 0:00:00]} d5 {[%emt 0:00:16]} 3. exd5 {[%emt 0:01:08]} cxd5 {[%emt 0:00:10]} 4. c4 {[%emt 0:00:16]} e6 {[%emt 0:00:26]} 5. Nc3 {[%emt 0:00:49]} Nc6 {[%emt 0:00:46]} 6. Nf3 {[%emt 0:05:30]} Nf6 {[%emt 0:00:53]} 7. c5 {[%emt 0:00:16]} Bd7 {[%emt 0:02:33]} 8. Bd3 {[%emt 0:00:54]} b6 {[%emt 0:00:45]} 9. cxb6 {[%emt 0:20:04]} Qxb6 {[%emt 0:00:59]} 10. Bb1 {[%emt 0:04:53]} Bd6 {[%emt 0:02:28]} 11. O-O {[%emt 0:00:31]} Rc8 {[%emt 0:03:56]} 12. a3 {[%emt 0:15:35]} h6 {[%emt 0:01:59]} 13. Na4 {[%emt 0:07:20]} Qb8 {[%emt 0:00:54]} 14. Nc5 {[%emt 0:01:19]} Nxd4 {[%emt 0:03:36]} 15. Nxd4 {[%emt 0:14:03]} Bxc5 {[%emt 0:00:48]} 16. Re1 {[%emt 0:03:45]} Qb6 {[%emt 0:06:35]} 17. Be3 {[%emt 0:03:19]} Qxb2 {[%emt 0:07:33]} 18. Nb3 {[%emt 0:02:01]} Bxe3 {[%emt 0:00:43]} 19. Rxe3 {[%emt 0:00:10]} Ba4 {[%emt 0:10:44]} 20. Ra2 {[%emt 0:08:55]} Bxb3 {[%emt 0:02:00]} 21. Rxb3 {[%emt 0:00:24]} Rc1 {[%emt 0:03:29]} 22. Rb8+ {[%emt 0:00:48]} Ke7 {[%emt 0:00:20]} 23. Rb7+ {[%emt 0:00:22]} Kd6 {[%emt 0:00:35]} 0-1

[Event "55th Rubinstein Memorial-C 2019"]
[Site "Polanica-Zdroj"]
[Date "2019.08.17"]
[Round "1.3"]
[White "Talik, Patryk"]
[Black "Zielonka, Adam"]
[Result "1-0"]
[ECO "A80"]
[WhiteElo "1975"]
[BlackElo "1488"]
[Annotator "NA"]
[PlyCount "61"]
[EventDate "2019.08.17"]
[EventType "swiss"]
[EventCountry "POL"]
[SourceTitle "playchess.com"]
[Source "ChessBase"]
[SourceQuality "1"]
[TimeControl "40/5400+30:1800+30"]

1. d4 {[%emt 0:11:16]} f5 {[%emt 0:00:00]} 2. Bg5 {[%emt 0:02:27]} h6 {[%emt 0:00:18]} 3. Bh4 {[%emt 0:02:02]} g5 {[%emt 0:10:00]} 4. e3 {[%emt 0:01:21]} Nf6 {[%emt 0:01:08]} 5. Be2 {[%emt 0:00:09]} Bg7 {[%emt 0:00:57]} 6. Bg3 {[%emt 0:00:12]} O-O {[%emt 0:03:56]} 7. f3 {[%emt 0:05:50]} d6 {[%emt 0:00:58]} 8. c3 {[%emt 0:02:50]} c6 {[%emt 0:01:14]} 9. Nd2 {[%emt 0:00:20]} Na6 {[%emt 0:13:08]} 10. Qc2 {[%emt 0:06:43]} Nc7 {[%emt 0:01:47]} 11. Bd3 {[%emt 0:00:26]} Nfd5 {[%emt 0:00:47]} 12. Bf2 {[%emt 0:00:34]} e5 {[%emt 0:13:08]} 13. O-O-O {[%emt 0:01:20]} exd4 {[%emt 0:01:02]} 14. exd4 {[%emt 0:00:17]} b5 {[%emt 0:07:35]} 15. Ne2 {[%emt 0:03:19]} a5 {[%emt 0:01:48]} 16. Ng3 {[%emt 0:06:15]} Ne7 {[%emt 0:03:18]} 17. Nh5 {[%emt 0:00:30]} b4 {[%emt 0:02:57]} 18. g4 {[%emt 0:02:43]} bxc3 {[%emt 0:00:35]} 19. bxc3 {[%emt 0:00:16]} Ncd5 {[%emt 0:01:44]} 20. h4 {[%emt 0:00:20]} a4 {[%emt 0:04:21]} 21. hxg5 {[%emt 0:00:30]} hxg5 {[%emt 0:00:12]} 22. Rdg1 {[%emt 0:05:17]} fxg4 {[%emt 0:02:07]} 23. Bh7+ {[%emt 0:04:48]} Kf7 {[%emt 0:00:39]} 24. Ne4 {[%emt 0:05:53]} Bh6 {[%emt 0:08:03]} 25. Bg3 {[%emt 0:17:44]} Ne3 {[%emt 0:03:49]} 26. Qf2 {[%emt 0:06:06]} Nc4 {[%emt 0:02:00]} 27. fxg4+ {[%emt 0:01:16]} Ke6 {[%emt 0:04:04]} 28. Qe2 {[%emt 0:00:44]} Kd7 {[%emt 0:03:31]} 29. Qxc4 {[%emt 0:00:50]} Ba6 {[%emt 0:00:35]} 30. Qb4 {[%emt 0:00:47]} c5 {[%emt 0:00:59]} 31. Qxa4+ {[%emt 0:01:14]} 1-0

[Event "55th Rubinstein Memorial-C 2019"]
[Site "Polanica-Zdroj"]
[Date "2019.08.17"]
[Round "1.4"]
[White "Goral, Jan"]
[Black "Rakita, Efim"]
[Result "1/2-1/2"]
[ECO "D20"]
[WhiteElo "1486"]
[BlackElo "1960"]
[Annotator "NA"]
[PlyCount "77"]
[EventDate "2019.08.17"]
[EventType "swiss"]
[EventCountry "POL"]
[SourceTitle "playchess.com"]
[Source "ChessBase"]
[SourceQuality "1"]
[TimeControl "40/5400+30:1800+30"]

1. d4 {[%emt 0:00:00]} d5 {[%emt 0:00:00]} 2. c4 {[%emt 0:00:00]} dxc4 {[%emt 0:00:13]} 3. e4 {[%emt 0:00:35]} c5 {[%emt 0:00:26]} 4. d5 {[%emt 0:00:47]} Nf6 {[%emt 0:00:13]} 5. f3 {[%emt 0:01:00]} e6 {[%emt 0:01:13]} 6. Bxc4 {[%emt 0:03:38]} exd5 {[%emt 0:00:40]} 7. Bxd5 {[%emt 0:01:57]} Nxd5 {[%emt 0:00:22]} 8. exd5 {[%emt 0:01:24]} Bd6 {[%emt 0:00:21]} 9. Ne2 {[%emt 0:02:26]} O-O {[%emt 0:00:43]} 10. O-O {[%emt 0:00:54]} Qc7 {[%emt 0:03:11]} 11. Kh1 {[%emt 0:03:07]} Bf5 {[%emt 0:01:07]} 12. Nbc3 {[%emt 0:00:34]} a6 {[%emt 0:00:33]} 13. Be3 {[%emt 0:04:33]} Re8 {[%emt 0:01:09]} 14. Bf2 {[%emt 0:01:00]} Nd7 {[%emt 0:02:38]} 15. Bg3 {[%emt 0:00:54]} Nf6 {[%emt 0:02:13]} 16. Bxd6 {[%emt 0:01:21]} Qxd6 {[%emt 0:00:02]} 17. Ng3 {[%emt 0:00:29]} Qd7 {[%emt 0:04:12]} 18. Qd2 {[%emt 0:02:02]} Rad8 {[%emt 0:03:14]} 19. Rad1 {[%emt 0:00:52]} h6 {[%emt 0:00:15]} 20. Qf4 {[%emt 0:01:24]} Bc2 {[%emt 0:01:53]} 21. Rd2 {[%emt 0:00:37]} Bg6 {[%emt 0:00:03]} 22. Rfd1 {[%emt 0:01:09]} Qd6 {[%emt 0:02:48]} 23. Qh4 {[%emt 0:02:16]} b5 {[%emt 0:02:26]} 24. Nce4 {[%emt 0:01:26]} Nxe4 {[%emt 0:00:36]} 25. Nxe4 {[%emt 0:00:54]} Bxe4 {[%emt 0:00:28]} 26. fxe4 {[%emt 0:00:07]} Qe5 {[%emt 0:00:59]} 27. Re2 {[%emt 0:03:29]} Qf6 {[%emt 0:06:02]} 28. Qxf6 {[%emt 0:04:08]} gxf6 {[%emt 0:00:02]} 29. g3 {[%emt 0:00:44]} Re5 {[%emt 0:00:50]} 30. Rf2 {[%emt 0:11:29]} Rxe4 {[%emt 0:08:35]} 31. Rxf6 {[%emt 0:00:12]} Re5 {[%emt 0:00:52]} 32. Rxa6 {[%emt 0:01:40]} Rexd5 {[%emt 0:00:24]} 33. Rxd5 {[%emt 0:04:01]} Rxd5 {[%emt 0:00:02]} 34. b3 {[%emt 0:00:42]} c4 {[%emt 0:01:27]} 35. bxc4 {[%emt 0:01:15]} bxc4 {[%emt 0:00:01]} 36. Rc6 {[%emt 0:00:12]} Rd1+ {[%emt 0:00:10]} 37. Kg2 {[%emt 0:00:06]} Rd2+ {[%emt 0:00:40]} 38. Kh3 {[%emt 0:00:07]} Rxa2 {[%emt 0:00:16]} 39. Rxc4 {[%emt 0:00:05]} 1/2-1/2

[Event "55th Rubinstein Memorial-C 2019"]
[Site "Polanica-Zdroj"]
[Date "2019.08.17"]
[Round "1.5"]
[White "Szczesniak, Andrzej"]
[Black "Ciesielski, Maciej"]
[Result "1-0"]
[ECO "D35"]
[WhiteElo "1954"]
[BlackElo "1486"]
[Annotator "NA"]
[PlyCount "119"]
[EventDate "2019.08.17"]
[EventType "swiss"]
[EventCountry "POL"]
[SourceTitle "playchess.com"]
[Source "ChessBase"]
[SourceQuality "1"]
[TimeControl "40/5400+30:1800+30"]

1. d4 {[%emt 0:00:00]} d5 {[%emt 0:00:00]} 2. c4 {[%emt 0:00:00]} e6 {[%emt 0:00:04]} 3. Nc3 {[%emt 0:00:00]} Nf6 {[%emt 0:00:19]} 4. cxd5 {[%emt 0:00:18]} exd5 {[%emt 0:00:11]} 5. Bg5 {[%emt 0:00:13]} Be7 {[%emt 0:00:25]} 6. e3 {[%emt 0:01:25]} O-O {[%emt 0:00:54]} 7. Bd3 {[%emt 0:00:46]} h6 {[%emt 0:00:46]} 8. Bf4 {[%emt 0:04:16]} Re8 {[%emt 0:05:32]} 9. Qc2 {[%emt 0:02:03]} c5 {[%emt 0:01:46]} 10. dxc5 {[%emt 0:08:16]} Bxc5 {[%emt 0:02:14]} 11. Nge2 {[%emt 0:02:52]} Nc6 {[%emt 0:23:58]} 12. a3 {[%emt 0:02:44]} a6 {[%emt 0:00:58]} 13. O-O {[%emt 0:08:02]} Bg4 {[%emt 0:20:06]} 14. h3 {[%emt 0:13:55]} Bxe2 {[%emt 0:00:28]} 15. Nxe2 {[%emt 0:00:13]} Bb6 {[%emt 0:01:14]} 16. Rad1 {[%emt 0:04:53]} Rc8 {[%emt 0:03:03]} 17. Bf5 {[%emt 0:02:34]} Nd4 {[%emt 0:05:59]} 18. Qd3 {[%emt 0:01:03]} Nxf5 {[%emt 0:00:42]} 19. Qxf5 {[%emt 0:00:03]} Qe7 {[%emt 0:02:42]} 20. Nc3 {[%emt 0:02:47]} Qe6 {[%emt 0:00:44]} 21. Qd3 {[%emt 0:03:34]} Red8 {[%emt 0:00:57]} 22. Rfe1 {[%emt 0:03:42]} Qc6 {[%emt 0:05:45]} 23. Be5 {[%emt 0:01:38]} Ba5 {[%emt 0:06:14]} 24. b4 {[%emt 0:07:04]} Nd7 {[%emt 0:00:32]} 25. Nxd5 {[%emt 0:08:13]} Nxe5 {[%emt 0:00:30]} 26. Ne7+ {[%emt 0:00:16]} Kf8 {[%emt 0:00:58]} 27. Qxd8+ {[%emt 0:03:14]} Bxd8 {[%emt 0:00:23]} 28. Nxc6 {[%emt 0:00:13]} Nxc6 {[%emt 0:00:05]} 29. Rd7 {[%emt 0:00:21]} Rc7 {[%emt 0:00:14]} 30. Red1 {[%emt 0:01:41]} Ke8 {[%emt 0:00:17]} 31. R7d5 {[%emt 0:00:27]} b5 {[%emt 0:01:00]} 32. Kf1 {[%emt 0:02:17]} Bf6 {[%emt 0:00:29]} 33. f4 {[%emt 0:01:27]} Ke7 {[%emt 0:04:16]} 34. Ke2 {[%emt 0:00:40]} Nb8 {[%emt 0:00:40]} 35. Rd8 {[%emt 0:01:47]} Nc6 {[%emt 0:08:44]} 36. Ra8 {[%emt 0:02:23]} Ra7 {[%emt 0:00:03]} 37. Rc8 {[%emt 0:00:14]} Bb2 {[%emt 0:03:51]} 38. Rxc6 {[%emt 0:02:09]} Bxa3 {[%emt 0:00:08]} 39. Rb1 {[%emt 0:00:32]} a5 {[%emt 0:00:15]} 40. bxa5 {[%emt 0:00:58]} Rxa5 {[%emt 0:00:03]} 41. Rb6 {[%emt 0:30:36]} b4 {[%emt 0:30:10]} 42. e4 {[%emt 0:01:44]} Rc5 {[%emt 0:00:50]} 43. Rb7+ {[%emt 0:00:37]} Ke8 {[%emt 0:00:24]} 44. Rd1 {[%emt 0:01:39]} Rc4 {[%emt 0:00:22]} 45. Rd5 {[%emt 0:02:13]} Rxe4+ {[%emt 0:01:13]} 46. Kf3 {[%emt 0:00:26]} Rc4 {[%emt 0:00:42]} 47. Re5+ {[%emt 0:01:54]} Kd8 {[%emt 0:00:09]} 48. Ra5 {[%emt 0:00:27]} Rc7 {[%emt 0:00:23]} 49. Rbb5 {[%emt 0:01:14]} Ke7 {[%emt 0:01:05]} 50. Ra6 {[%emt 0:00:56]} g6 {[%emt 0:01:04]} 51. Ke4 {[%emt 0:01:04]} f5+ {[%emt 0:01:04]} 52. Kd5 {[%emt 0:00:33]} Rd7+ {[%emt 0:00:24]} 53. Kc4 {[%emt 0:00:43]} Rc7+ {[%emt 0:00:10]} 54. Kb3 {[%emt 0:00:59]} Kf7 {[%emt 0:00:06]} 55. Ka4 {[%emt 0:00:26]} h5 {[%emt 0:00:56]} 56. Rbb6 {[%emt 0:00:27]} h4 {[%emt 0:00:45]} 57. Rxg6 {[%emt 0:00:15]} Re7 {[%emt 0:00:24]} 58. Raf6+ {[%emt 0:00:48]} Ke8 {[%emt 0:00:10]} 59. Rxf5 {[%emt 0:00:15]} Re4 {[%emt 0:00:11]} 60. Re5+ {[%emt 0:00:11] Rc4} 1-0

[Event "55th Rubinstein Memorial-C 2019"]
[Site "Polanica-Zdroj"]
[Date "2019.08.17"]
[Round "1.6"]
[White "Goszyk, Bartosz"]
[Black "Bartoszewicz, Marcin"]
[Result "1-0"]
[ECO "B70"]
[WhiteElo "1486"]
[BlackElo "1950"]
[Annotator "NA"]
[PlyCount "64"]
[EventDate "2019.08.17"]
[EventType "swiss"]
[EventCountry "POL"]
[SourceTitle "playchess.com"]
[Source "ChessBase"]
[SourceQuality "1"]
[TimeControl "40/5400+30:1800+30"]

1. e4 {[%emt 0:00:00]} c5 {[%emt 0:38:33]} 2. Nf3 {[%emt 0:00:00]} d6 {[%emt 0:00:08]} 3. d4 {[%emt 0:00:00]} cxd4 {[%emt 0:00:07]} 4. Nxd4 {[%emt 0:00:00]} Nf6 {[%emt 0:00:14]} 5. Nc3 {[%emt 0:00:07]} g6 {[%emt 0:00:27]} 6. g3 {[%emt 0:01:34]} Bg7 {[%emt 0:00:22]} 7. Bg2 {[%emt 0:00:06]} O-O {[%emt 0:00:34]} 8. O-O {[%emt 0:02:06]} Bd7 {[%emt 0:01:35]} 9. h3 {[%emt 0:01:29]} Nc6 {[%emt 0:00:24]} 10. Nde2 {[%emt 0:00:16]} a6 {[%emt 0:01:44]} 11. a4 {[%emt 0:00:40]} Rc8 {[%emt 0:00:36]} 12. b3 {[%emt 0:01:54]} b5 {[%emt 0:05:16]} 13. axb5 {[%emt 0:00:06]} axb5 {[%emt 0:00:05]} 14. Bb2 {[%emt 0:00:28]} Nb4 {[%emt 0:00:45]} 15. f4 {[%emt 0:08:59]} Qb6+ {[%emt 0:01:48]} 16. Kh2 {[%emt 0:00:06]} Bc6 {[%emt 0:01:26]} 17. Ba3 {[%emt 0:08:00]} Na6 {[%emt 0:07:31]} 18. Bb2 {[%emt 0:03:09]} b4 {[%emt 0:02:40]} 19. Na4 {[%emt 0:01:31]} Qb7 {[%emt 0:01:30]} 20. Bxf6 {[%emt 0:01:26]} Bxf6 {[%emt 0:00:10]} 21. Ra2 {[%emt 0:00:02]} Rc7 {[%emt 0:04:42]} 22. Qd3 {[%emt 0:01:48]} Bb5 {[%emt 0:02:45]} 23. Qd2 {[%emt 0:00:13]} Bc6 {[%emt 0:01:09]} 24. Qd3 {[%emt 0:00:17]} Nc5 {[%emt 0:01:25]} 25. Nxc5 {[%emt 0:00:16]} dxc5 {[%emt 0:00:01]} 26. Qe3 {[%emt 0:02:25]} Rd8 {[%emt 0:00:30]} 27. Ra5 {[%emt 0:07:13]} c4 {[%emt 0:03:16]} 28. bxc4 {[%emt 0:00:53]} Ra8 {[%emt 0:01:35]} 29. Rxa8+ {[%emt 0:01:33]} Qxa8 {[%emt 0:00:01]} 30. Rb1 {[%emt 0:02:20]} e6 {[%emt 0:03:44]} 31. Rxb4 {[%emt 0:02:33]} Be7 {[%emt 0:00:21]} 32. Rb1 {[%emt 0:00:49]} Rc8 {[%emt 0:03:22] komórka} 1-0

[Event "55th Rubinstein Memorial-C 2019"]
[Site "Polanica-Zdroj"]
[Date "2019.08.17"]
[Round "1.7"]
[White "Kardys, Zbigniew"]
[Black "Gworys, Grzegorz"]
[Result "1-0"]
[ECO "B53"]
[WhiteElo "1949"]
[BlackElo "1481"]
[Annotator "NA"]
[PlyCount "31"]
[EventDate "2019.08.17"]
[EventType "swiss"]
[EventCountry "POL"]
[SourceTitle "playchess.com"]
[Source "ChessBase"]
[SourceQuality "1"]
[TimeControl "40/5400+30:1800+30"]

1. e4 {[%emt 0:00:00]} c5 {[%emt 0:00:00]} 2. Nf3 {[%emt 0:00:00]} d6 {[%emt 0:00:00]} 3. d4 {[%emt 0:00:00]} cxd4 {[%emt 0:00:00]} 4. Qxd4 {[%emt 0:00:00]} Nc6 {[%emt 0:00:20]} 5. Bb5 {[%emt 0:00:05]} Bd7 {[%emt 0:00:07]} 6. Bxc6 {[%emt 0:00:10]} Bxc6 {[%emt 0:00:04]} 7. Bg5 {[%emt 0:00:08]} f6 {[%emt 0:01:21]} 8. Be3 {[%emt 0:01:29]} e5 {[%emt 0:00:13]} 9. Qd3 {[%emt 0:02:56]} f5 {[%emt 0:00:34]} 10. Qb3 {[%emt 0:15:47]} f4 {[%emt 0:06:10]} 11. Bd2 {[%emt 0:01:01]} Bxe4 {[%emt 0:00:49]} 12. Nc3 {[%emt 0:00:19]} Bc6 {[%emt 0:00:08]} 13. O-O-O {[%emt 0:02:13]} Nf6 {[%emt 0:06:56]} 14. Rhe1 {[%emt 0:04:08]} h6 {[%emt 0:03:21]} 15. Bxf4 {[%emt 0:00:47]} Qc7 {[%emt 0:04:28]} 16. Nxe5 {[%emt 0:00:36]} 1-0

[Event "55th Rubinstein Memorial-C 2019"]
[Site "Polanica-Zdroj"]
[Date "2019.08.17"]
[Round "1.8"]
[White "Rog, Mateusz"]
[Black "Tokmantsev, Ivan"]
[Result "1-0"]
[ECO "C01"]
[WhiteElo "1473"]
[BlackElo "1918"]
[Annotator "NA"]
[PlyCount "89"]
[EventDate "2019.08.17"]
[EventType "swiss"]
[EventCountry "POL"]
[SourceTitle "playchess.com"]
[Source "ChessBase"]
[SourceQuality "1"]
[TimeControl "40/5400+30:1800+30"]

1. e4 {[%emt 0:00:00]} e6 {[%emt 0:00:00]} 2. d4 {[%emt 0:00:14]} d5 {[%emt 0:00:00]} 3. exd5 {[%emt 0:00:13]} exd5 {[%emt 0:00:00]} 4. Nf3 {[%emt 0:00:11]} Nf6 {[%emt 0:00:09]} 5. Bd3 {[%emt 0:00:17]} Bd6 {[%emt 0:00:08]} 6. O-O {[%emt 0:00:41]} O-O {[%emt 0:00:05]} 7. h3 {[%emt 0:00:49]} h6 {[%emt 0:00:12]} 8. Nbd2 {[%emt 0:00:45]} Re8 {[%emt 0:00:25]} 9. c4 {[%emt 0:00:25]} c6 {[%emt 0:00:23]} 10. Qc2 {[%emt 0:04:38]} Nbd7 {[%emt 0:00:51]} 11. b3 {[%emt 0:00:50]} Nf8 {[%emt 0:00:24]} 12. Bb2 {[%emt 0:00:22]} Be6 {[%emt 0:02:45]} 13. Ne5 {[%emt 0:05:50]} dxc4 {[%emt 0:00:46]} 14. bxc4 {[%emt 0:02:01]} Bc7 {[%emt 0:00:59]} 15. Ndf3 {[%emt 0:04:06]} Bc8 {[%emt 0:01:44]} 16. Rab1 {[%emt 0:07:18]} Ne6 {[%emt 0:00:18]} 17. Bc3 {[%emt 0:01:35]} Bb6 {[%emt 0:01:11]} 18. Rfd1 {[%emt 0:04:43]} Nf4 {[%emt 0:01:21]} 19. Bf1 {[%emt 0:04:50]} N6h5 {[%emt 0:06:11]} 20. d5 {[%emt 0:10:35]} cxd5 {[%emt 0:01:21]} 21. cxd5 {[%emt 0:00:05]} f6 {[%emt 0:02:56]} 22. Nc4 {[%emt 0:07:55]} Bc5 {[%emt 0:00:38]} 23. Bb4 {[%emt 0:02:35]} Bxb4 {[%emt 0:02:01]} 24. Rxb4 {[%emt 0:00:02]} b5 {[%emt 0:00:11]} 25. Ne3 {[%emt 0:00:57]} a5 {[%emt 0:03:47]} 26. Rxb5 {[%emt 0:00:19]} Ba6 {[%emt 0:00:06]} 27. Rc5 {[%emt 0:01:26]} Bxf1 {[%emt 0:00:37]} 28. Kxf1 {[%emt 0:00:30]} Qd7 {[%emt 0:01:45]} 29. Rc7 {[%emt 0:05:13]} Qb5+ {[%emt 0:04:33]} 30. Kg1 {[%emt 0:02:31]} Qb6 {[%emt 0:09:55]} 31. Nd4 {[%emt 0:09:39]} Rad8 {[%emt 0:03:04]} 32. Ndf5 {[%emt 0:00:24]} Qa6 {[%emt 0:12:50]} 33. Nxh6+ {[%emt 0:00:42]} Kh8 {[%emt 0:00:22]} 34. Nf7+ {[%emt 0:00:25]} Kg8 {[%emt 0:00:10]} 35. Nxd8 {[%emt 0:00:55]} Rxd8 {[%emt 0:00:10]} 36. Nf5 {[%emt 0:01:32]} Re8 {[%emt 0:03:51]} 37. Ne7+ {[%emt 0:01:24]} Kh8 {[%emt 0:02:12]} 38. Ng6+ {[%emt 0:02:56]} Kg8 {[%emt 0:00:09]} 39. Nxf4 {[%emt 0:00:05]} Nxf4 {[%emt 0:00:17]} 40. d6 {[%emt 0:01:27]} Re2 {[%emt 0:03:05]} 41. Qb3+ {[%emt 0:32:05]} Kh7 {[%emt 0:30:12]} 42. Qf7 {[%emt 0:00:11]} Ne6 {[%emt 0:00:32]} 43. Qh5+ {[%emt 0:01:36]} Kg8 {[%emt 0:00:08]} 44. Re7 {[%emt 0:03:01]} Qb6 {[%emt 0:00:20]} 45. Re8+ {[%emt 0:00:18]} 1-0

[Event "55th Rubinstein Memorial-C 2019"]
[Site "Polanica-Zdroj"]
[Date "2019.08.17"]
[Round "1.9"]
[White "Binkowska, Agata"]
[Black "Bialik, Nikodem"]
[Result "0-1"]
[ECO "C02"]
[WhiteElo "1896"]
[BlackElo "1472"]
[Annotator "NA"]
[PlyCount "54"]
[EventDate "2019.08.17"]
[EventType "swiss"]
[EventCountry "POL"]
[SourceTitle "playchess.com"]
[Source "ChessBase"]
[SourceQuality "1"]
[TimeControl "40/5400+30:1800+30"]

1. e4 {[%emt 0:00:00]} e6 {[%emt 0:00:15]} 2. d4 {[%emt 0:00:00]} d5 {[%emt 0:00:40]} 3. e5 {[%emt 0:00:00]} c5 {[%emt 0:00:08]} 4. c3 {[%emt 0:00:00]} Nc6 {[%emt 0:02:35]} 5. Nf3 {[%emt 0:00:00]} Qb6 {[%emt 0:00:22]} 6. Bd3 {[%emt 0:00:08]} cxd4 {[%emt 0:01:13]} 7. cxd4 {[%emt 0:00:07]} Bd7 {[%emt 0:00:41]} 8. O-O {[%emt 0:00:08]} Nxd4 {[%emt 0:02:53]} 9. Nxd4 {[%emt 0:00:09]} Qxd4 {[%emt 0:00:15]} 10. Qe2 {[%emt 0:00:06]} Qb6 {[%emt 0:01:11]} 11. Kh1 {[%emt 0:03:53]} Ne7 {[%emt 0:00:53]} 12. f4 {[%emt 0:00:07]} Nc6 {[%emt 0:00:45]} 13. Nc3 {[%emt 0:00:12]} Nb4 {[%emt 0:00:35]} 14. Bb5 {[%emt 0:13:15]} Rd8 {[%emt 0:05:44]} 15. f5 {[%emt 0:23:57]} a6 {[%emt 0:12:40]} 16. Bxd7+ {[%emt 0:04:07]} Rxd7 {[%emt 0:01:30]} 17. a3 {[%emt 0:01:09]} Nc6 {[%emt 0:03:12]} 18. fxe6 {[%emt 0:08:37]} fxe6 {[%emt 0:01:00]} 19. Bg5 {[%emt 0:03:23]} Be7 {[%emt 0:02:24]} 20. Bd2 {[%emt 0:18:11]} Qxb2 {[%emt 0:09:05]} 21. Qh5+ {[%emt 0:04:23]} g6 {[%emt 0:02:30]} 22. Qh6 {[%emt 0:01:34]} Rf8 {[%emt 0:16:10]} 23. Rfc1 {[%emt 0:07:43]} Rf7 {[%emt 0:06:08]} 24. Rab1 {[%emt 0:04:51]} Qxa3 {[%emt 0:04:09]} 25. Ra1 {[%emt 0:00:07]} Qb3 {[%emt 0:01:10]} 26. Rab1 {[%emt 0:00:52]} Qc4 {[%emt 0:01:35]} 27. Qh3 {[%emt 0:01:11]} Qd4 {[%emt 0:03:05]} 0-1